[Event "WSTCC-65 2020"]
[Site "Prague"]
[Date "2020.03.12"]
[Round "7.47"]
[White "Kierzek, Mira"]
[Black "Olsson, Torgny"]
[Result "1-0"]
[ECO "A57"]
[WhiteElo "1983"]
[BlackElo "1800"]
[Annotator "ChessBase"]
[PlyCount "49"]
[EventDate "2020.03.06"]
[EventType "team-tourn"]
[EventCountry "CZE"]
[SourceTitle "playchess.com"]
[Source "ChessBase"]
[SourceQuality "1"]
[TimeControl "40/5400+30:1800+30"]

1. d4 {[%emt 0:00:00]} Nf6 {[%emt 0:00:00]} 2. c4 {[%emt 0:00:00]} c5 {[%emt 0:00:05]} 3. d5 {[%emt 0:00:22]} b5 {[%emt 0:00:15]} 4. cxb5 {[%emt 0:01:10]} a6 {[%emt 0:00:21]} 5. e3 {[%emt 0:03:05]} g6 {[%emt 0:01:23]} 6. Nc3 {[%emt 0:04:09]} d6 {[%emt 0:00:50]} 7. Nf3 {[%emt 0:01:33]} Bg7 {[%emt 0:01:30]} 8. Bc4 {[%emt 0:02:23]} O-O {[%emt 0:03:37]} 9. O-O {[%emt 0:00:35]} Nbd7 {[%emt 0:00:52]} 10. bxa6 {[%emt 0:03:06]} Bxa6 {[%emt 0:01:10]} 11. Bxa6 {[%emt 0:03:01]} Rxa6 {[%emt 0:01:11]} 12. e4 {[%emt 0:02:11]} Qa8 {[%emt 0:08:12]} 13. a3 {[%emt 0:04:32]} Rb8 {[%emt 0:06:00]} 14. Rb1 {[%emt 0:05:10]} Ng4 {[%emt 0:04:22]} 15. Bg5 {[%emt 0:08:40]} f6 {[%emt 0:19:00]} 16. Bf4 {[%emt 0:06:14]} g5 {[%emt 0:03:05]} 17. Nxg5 {[%emt 0:06:18]} fxg5 {[%emt 0:14:10]} 18. Qxg4 {[%emt 0:00:29]} Nf6 {[%emt 0:01:10]} 19. Qe6+ {[%emt 0:00:17]} Kh8 {[%emt 0:00:22]} 20. Bxg5 {[%emt 0:00:27]} Re8 {[%emt 0:01:32]} 21. Ne2 {[%emt 0:08:13]} Rb6 {[%emt 0:01:34]} 22. Ng3 {[%emt 0:00:56]} h6 {[%emt 0:00:20]} 23. Bd2 {[%emt 0:02:12]} Qb8 {[%emt 0:01:07]} 24. Bc3 {[%emt 0:02:58]} Rb3 {[%emt 0:00:55]} 25. Nf5 {[%emt 0:00:33]} 1-0